bitfinex/quotes_BTCUSD_20250408
["timestamp","ask_amount","ask_price","bid_price","bid_amount"]
[1744107863358,0.00059094,79068.0,79067.0,1.44651949]
[1744107864015,0.00663852,79068.0,79067.0,1.44651949]
[1744107864225,0.00059094,79068.0,79067.0,1.44651949]
[1744107864362,0.25353694,79068.0,79067.0,1.44651949]
[1744107864596,0.00663852,79068.0,79067.0,1.44651949]
[1744107865114,0.01928552,79068.0,79067.0,1.44651949]
[1744107865727,0.00663852,79068.0,79067.0,1.44651949]
[1744107865944,0.25958452,79068.0,79067.0,1.29879949]
[1744107866143,0.27223152,79068.0,79067.0,1.43951949]
[1744107866579,0.27223152,79068.0,79067.0,1.44351949]
[1744107866995,0.27223152,79068.0,79067.0,1.43651949]
[1744107867204,0.27223152,79068.0,79067.0,1.43751949]
[1744107867475,0.00663852,79068.0,79067.0,1.43751949]
[1744107867691,0.00663852,79068.0,79067.0,1.43951949]
[1744107868050,0.00059094,79068.0,79067.0,1.43951949]
[1744107869288,0.00059094,79068.0,79067.0,1.70511649]
[1744107869689,0.00670372,79068.0,79067.0,1.70511649]
[1744107869891,0.00059094,79068.0,79067.0,1.70511649]
[1744107870081,0.00670372,79068.0,79067.0,1.70511649]
[1744107870277,0.00059094,79068.0,79067.0,1.70511649]
[1744107870478,0.00670372,79068.0,79067.0,1.70511649]
[1744107870682,0.00059094,79068.0,79067.0,1.43951949]
[1744107870897,0.00670372,79068.0,79067.0,1.43951949]
[1744107871064,0.00059094,79068.0,79067.0,1.43951949]
[1744107871499,0.00670372,79068.0,79067.0,1.43951949]
[1744107871700,0.00670372,79068.0,79067.0,1.45216649]
[1744107872032,0.00670372,79068.0,79067.0,1.50196649]
[1744107872637,0.00059094,79068.0,79067.0,1.50196649]
[1744107873640,0.00059094,79068.0,79067.0,1.50096649]
[1744107873930,0.00059094,79068.0,79067.0,1.49996649]
[1744107874362,0.00059094,79068.0,79067.0,1.50296649]
[1744107876041,0.00670372,79068.0,79067.0,1.50296649]
[1744107876266,0.00059094,79068.0,79067.0,1.50296649]
[1744107876811,0.00670372,79068.0,79067.0,1.50296649]
[1744107876988,0.00059094,79068.0,79067.0,1.50296649]
[1744107880924,0.00059094,79068.0,79067.0,1.50196649]
[1744107881143,0.00059094,79068.0,79067.0,1.50396649]
[1744107881370,0.00059094,79068.0,79067.0,1.54139359]
[1744107881808,0.00059094,79068.0,79067.0,1.54339359]
[1744107882031,0.00059094,79068.0,79067.0,1.54039359]
[1744107882477,0.00059094,79068.0,79067.0,1.54339359]
[1744107882901,0.00059094,79068.0,79067.0,1.53839359]
[1744107883126,0.00059094,79068.0,79067.0,1.54339359]
[1744107883345,0.00059094,79068.0,79067.0,1.54639359]
[1744107885086,0.00059094,79068.0,79067.0,1.54139359]
[1744107885301,0.00059094,79068.0,79067.0,1.54639359]
[1744107885884,0.00059094,79068.0,79067.0,1.54139359]
[1744107886088,0.00059094,79068.0,79067.0,1.54839359]
[1744107886501,0.00059094,79068.0,79067.0,1.54539359]
[1744107886883,0.00059094,79068.0,79067.0,1.55039359]
[1744107888772,0.00059094,79068.0,79067.0,1.96479359]
[1744107893597,0.00059094,79068.0,79067.0,1.88780574]
[1744107893818,0.00059094,79068.0,79067.0,1.86291949]
[1744107894702,0.01323794,79068.0,79067.0,1.43651949]
[1744107894939,0.01323794,79068.0,79067.0,1.43851949]
[1744107895164,0.01323794,79068.0,79067.0,1.29251949]
[1744107895397,0.01323794,79068.0,79067.0,1.29051949]
[1744107895639,0.01323794,79068.0,79067.0,1.14279949]
[1744107895877,0.44963794,79068.0,79067.0,0.12925864]
[1744107896096,0.605631,79057.0,79056.0,0.14368]
[1744107896299,0.605631,79057.0,79056.0,0.26993864]
[1744107897016,0.605631,79057.0,79056.0,0.12625864]
[1744107897215,0.605643,79053.0,79052.0,0.14368]
[1744107898632,0.608643,79053.0,79052.0,0.14368]
[1744107900670,0.608643,79053.0,79047.0,1.00192]
[1744107900671,0.60566,79048.0,79047.0,1.00192]
[1744107900877,0.60566,79048.0,79047.0,1.14564]
[1744107901080,0.60566,79048.0,79047.0,0.14372]
[1744107901933,0.65406,79048.0,79047.0,0.14372]
[1744107902336,0.65306,79048.0,79047.0,0.14372]
[1744107902752,0.65606,79048.0,79047.0,0.14472]
[1744107903367,0.65706,79048.0,79047.0,0.14472]
[1744107903580,0.012653,79028.0,79027.0,1.12511142]
[1744107903756,0.605727,79028.0,79027.0,1.39509006]
[1744107903962,0.605727,79028.0,79027.0,1.28153235]
[1744107904648,0.61851294,79028.0,79027.0,1.28153235]
[1744107904845,0.61851294,79028.0,79027.0,1.27209864]
[1744107905056,0.62151294,79028.0,79027.0,1.27222623]
[1744107905450,0.62351294,79028.0,79027.0,1.27222623]
[1744107908690,0.62351294,79028.0,79027.0,1.00224759]
[1744107908844,0.62351294,79028.0,79027.0,0.00012759]
[1744107909263,0.74374843,79028.0,79027.0,0.00012759]
[1744107909521,0.62351294,79028.0,79027.0,0.00012759]
[1744107910356,0.62051294,79028.0,79027.0,0.00012759]
[1744107910576,0.62251294,79028.0,79027.0,0.00112759]
[1744107910857,0.62251294,79028.0,79027.0,0.00212759]
[1744107910858,0.63051294,79028.0,79027.0,0.00212759]
[1744107911173,0.63051294,79028.0,79027.0,0.00100001]
[1744107911347,0.67791294,79028.0,79027.0,0.00100001]
[1744107911536,0.605805,79005.0,78995.0,0.000336]
[1744107911746,0.605805,79005.0,79004.0,0.27014647]
[1744107912551,0.605805,79005.0,79004.0,0.12638647]
[1744107913479,0.605805,79005.0,79004.0,0.00012783]
[1744107914515,0.608805,79005.0,79004.0,0.00012783]
[1744107914715,0.612805,79005.0,79004.0,0.00012783]
[1744107914919,0.605805,79005.0,79004.0,0.00012783]
[1744107915290,0.616805,79005.0,79004.0,0.00112783]
[1744107922645,0.616805,79005.0,78995.0,0.000336]
[1744107922646,0.605815,79002.0,79001.0,8.3e-07]
[1744107922858,0.651415,79002.0,79001.0,0.00012771]
[1744107923999,1.070215,79002.0,79001.0,0.00112771]
[1744107924491,1.063215,79002.0,79001.0,0.00012771]
[1744107924684,1.070215,79002.0,79001.0,0.00112771]
[1744107924900,1.063215,79002.0,79001.0,0.00012771]
[1744107925843,1.063215,79002.0,79001.0,0.00212771]
[1744107936296,1.017615,79002.0,79001.0,0.00212771]
[1744107946345,0.265892,78979.0,78978.0,0.0463]
[1744107946542,0.605913,78973.0,78972.0,0.000336]
[1744107946971,0.605913,78973.0,78972.0,0.00046365]
[1744107947428,0.012663,78968.0,78967.0,1.6e-07]
[1744107947614,0.60593,78968.0,78967.0,1.6e-07]
[1744107947818,0.60593,78968.0,78967.0,0.00042283]
[1744107948234,1.0302023,78968.0,78967.0,8.3e-07]
[1744107949186,1.0332023,78968.0,78967.0,8.3e-07]
[1744107950707,1.0362023,78968.0,78967.0,8.3e-07]
[1744107954028,1.1556263,78968.0,78967.0,8.3e-07]
[1744107954261,1.0362023,78968.0,78967.0,8.3e-07]
[1744107970332,0.6962023,78968.0,78967.0,0.04730083]
[1744107970555,0.2844023,78968.0,78967.0,0.22165947]
[1744107970763,0.6244023,78968.0,78967.0,0.09540083]
[1744107971155,0.6244023,78968.0,78967.0,8.3e-07]
[1744107972573,0.6244023,78968.0,78967.0,0.12625947]
[1744107972745,0.6244023,78968.0,78967.0,0.17325947]
[1744107977286,0.6244023,78968.0,78967.0,0.21825947]
[1744107978696,0.3584723,78968.0,78967.0,0.21825947]
[1744107979012,0.6117393,78968.0,78967.0,0.21825947]
[1744107979178,0.6244023,78968.0,78967.0,0.21825947]
[1744107979733,0.0184723,78968.0,78967.0,0.24546332]
[1744107980147,0.3584723,78968.0,78967.0,0.23280032]
[1744107980346,0.0311353,78968.0,78967.0,0.23280032]
[1744107980647,0.0311353,78968.0,78967.0,0.21825947]
[1744107980648,0.3681353,78968.0,78967.0,0.21825947]
[1744107980872,0.3681353,78968.0,78967.0,0.22025947]
[1744107981294,0.3651353,78968.0,78967.0,0.22025947]
[1744107984830,0.3651353,78968.0,78967.0,0.21825947]
[1744107985285,0.3731353,78968.0,78967.0,0.21825947]
[1744107994235,0.3731353,78968.0,78967.0,8.3e-07]
[1744108003248,0.7849353,78968.0,78967.0,8.3e-07]
[1744108005226,0.7849353,78968.0,78967.0,0.09800083]
[1744108005652,0.4322723,78968.0,78967.0,0.22425947]
[1744108005854,0.4322723,78968.0,78967.0,0.25146332]
[1744108006295,0.7722723,78968.0,78967.0,0.25146332]
[1744108006461,0.7722723,78968.0,78967.0,0.49207032]
[1744108006646,0.7682723,78968.0,78967.0,0.23880032]
[1744108007051,0.7702723,78968.0,78967.0,0.23880032]
[1744108007543,0.7662723,78968.0,78967.0,0.23880032]
[1744108008075,0.7682723,78968.0,78967.0,0.23880032]
[1744108008278,0.7662723,78968.0,78967.0,0.23880032]
[1744108008699,0.7672723,78968.0,78967.0,0.23880032]
[1744108008880,0.7652723,78968.0,78967.0,0.23880032]
[1744108009076,0.3554723,78968.0,78967.0,0.23880032]
[1744108010365,0.6214023,78968.0,78967.0,0.23880032]
[1744108011210,0.3554723,78968.0,78967.0,0.23880032]
[1744108013369,0.3681353,78968.0,78967.0,0.23880032]
[1744108013565,0.6214023,78968.0,78967.0,0.23880032]
[1744108013973,0.6214023,78968.0,78967.0,0.22425947]
[1744108019142,0.6087393,78968.0,78967.0,0.23880032]
[1744108019331,0.6214023,78968.0,78967.0,0.23880032]
[1744108019949,0.6194023,78968.0,78967.0,0.22425947]
[1744108020383,0.6204023,78968.0,78967.0,0.22425947]
[1744108021411,0.6194023,78968.0,78967.0,0.22425947]
[1744108022271,0.3544723,78968.0,78967.0,0.23880032]
[1744108022799,0.342,78968.0,78967.0,0.25146332]
[1744108023272,0.001,78968.0,78967.0,0.40146332]
[1744108024440,0.01286188,78980.0,78976.0,0.265903]
[1744108024646,0.34,78981.0,78978.0,0.01454085]
[1744108024874,0.34,78981.0,78980.0,0.01454085]
[1744108025042,0.34,78981.0,78980.0,0.14079949]
[1744108025569,0.34,78981.0,78980.0,0.18829949]
[1744108025570,0.352661,78981.0,78980.0,0.18829949]
[1744108025746,0.355661,78981.0,78980.0,0.18829949]
[1744108026169,0.359661,78981.0,78980.0,0.18829949]
[1744108026349,0.356661,78981.0,78980.0,0.18829949]
[1744108026951,0.360661,78981.0,78980.0,0.18829949]
[1744108027507,0.008,78981.0,78980.0,0.20096049]
[1744108028021,0.008,78981.0,78980.0,0.18829949]
[1744108028233,0.348,78981.0,78980.0,0.18829949]
[1744108028449,0.348,78981.0,78980.0,0.44152749]
[1744108028695,0.348,78981.0,78980.0,0.18829949]
[1744108029205,0.008,78981.0,78980.0,0.20096049]
[1744108029460,0.0099529,78984.0,78983.0,0.17720085]
[1744108029690,0.253186,78994.0,78988.0,0.0475]
[1744108029969,0.012658,78998.0,78991.0,0.01454085]
[1744108030213,0.265835,78997.0,78992.0,0.27001864]
[1744108030488,0.593179,78996.0,78992.0,0.27001864]
[1744108030742,0.012659,78993.0,78992.0,0.28455949]
[1744108031219,0.01308199,78993.0,78992.0,0.28455949]
[1744108032145,0.01308199,78993.0,78992.0,0.27001864]
[1744108032410,0.01508199,78993.0,78992.0,0.27001864]
[1744108032635,0.01608199,78993.0,78992.0,0.27001864]
[1744108032863,0.01608199,78993.0,78992.0,0.26997864]
[1744108032864,0.01308199,78993.0,78992.0,0.26997864]
[1744108033089,0.01608199,78993.0,78992.0,0.26997864]
[1744108033279,0.01808199,78993.0,78992.0,0.26997864]
[1744108036037,0.01808199,78993.0,78992.0,0.31767864]
[1744108037519,0.00542299,78993.0,78992.0,0.63270949]
[1744108037743,0.00542299,78993.0,78992.0,0.64536849]
[1744108037918,0.00542299,78993.0,78992.0,0.79536849]
[1744108038582,0.00342299,78993.0,78992.0,0.79536849]
[1744108038737,0.00142299,78993.0,78992.0,0.79536849]
[1744108038952,0.00242299,78993.0,78992.0,0.79536849]
[1744108039160,0.00142299,78993.0,78992.0,0.79536849]
[1744108039593,0.00042299,78993.0,78992.0,0.79536849]
[1744108043134,0.00042299,78993.0,78992.0,0.8191159]
[1744108045258,0.00042299,78993.0,78992.0,0.79536849]
[1744108050180,0.00042299,78993.0,78992.0,1.20976849]
[1744108050356,0.00042299,78993.0,78992.0,1.23351334]
[1744108051237,0.00042299,78993.0,78992.0,1.23551334]
[1744108051633,0.00142299,78993.0,78992.0,1.23351334]
[1744108052482,0.00242299,78993.0,78992.0,1.23751334]
[1744108053616,0.00242299,78993.0,78992.0,1.21376849]
[1744108054109,0.00242299,78993.0,78992.0,1.23751145]
[1744108054513,0.00242299,78993.0,78992.0,1.27694562]
[1744108054851,0.00242299,78993.0,78992.0,2.27986562]
[1744108055462,0.00242299,78993.0,78992.0,2.24043145]
[1744108055606,0.00242299,78993.0,78992.0,2.09043145]
[1744108055838,0.00242299,78993.0,78992.0,2.2131516]
[1744108056006,0.00242299,78993.0,78992.0,2.24035145]
[1744108057066,0.00142299,78993.0,78992.0,2.23635145]
[1744108057473,0.00242299,78993.0,78992.0,2.24035145]
[1744108058098,0.00242299,78993.0,78992.0,1.95075949]
[1744108058297,0.00142299,78993.0,78992.0,1.95075949]
[1744108058471,0.00142299,78993.0,78992.0,1.96341849]
[1744108058675,0.00242299,78993.0,78992.0,1.96341849]
[1744108058970,0.00042299,78993.0,78992.0,1.95941849]
[1744108059364,0.00142299,78993.0,78992.0,1.95941849]
[1744108060101,0.00142299,78993.0,78992.0,1.96341849]
[1744108065107,0.00142299,78993.0,78992.0,1.81977849]
[1744108065306,0.00142299,78993.0,78992.0,1.96341849]
[1744108080008,0.00142299,78993.0,78992.0,1.98713586]
[1744108082009,0.25460899,78993.0,78992.0,1.57129601]
[1744108082207,0.60726799,78993.0,78992.0,1.71489601]
[1744108082409,0.60726799,78993.0,78992.0,1.72943686]
[1744108084023,0.60726799,78993.0,78992.0,1.57129601]
[1744108084199,0.60726799,78993.0,78992.0,1.30049601]
[1744108084418,0.65446799,78993.0,78992.0,1.30049601]
[1744108085020,0.65446799,78993.0,78992.0,1.27277864]
[1744108085244,0.65346799,78993.0,78992.0,1.27277864]
[1744108086105,0.60626799,78993.0,78992.0,1.27277864]
[1744108086697,0.60626799,78993.0,78992.0,1.30397849]
[1744108086698,0.34042299,78993.0,78992.0,1.30397849]
[1744108086896,0.34042299,78993.0,78992.0,1.29131949]
[1744108087102,0.59360899,78993.0,78992.0,1.29131949]
[1744108087298,0.60626799,78993.0,78992.0,1.29131949]
[1744108087519,0.60626799,78993.0,78992.0,1.27677864]
[1744108090248,0.60626799,78993.0,78992.0,0.27385864]
[1744108100628,0.34042299,78993.0,78992.0,0.28839949]
[1744108101014,0.34042299,78993.0,78992.0,0.31208165]
[1744108101633,0.34042299,78993.0,78992.0,0.32474065]
[1744108101810,0.00042299,78993.0,78992.0,0.62563065]
[1744108102439,0.00042299,78993.0,78992.0,0.35978165]
[1744108104789,0.60626799,78993.0,78992.0,0.35978165]
[1744108111586,0.34042299,78993.0,78992.0,0.37244065]
[1744108111801,0.34042299,78993.0,78992.0,0.35978165]
[1744108112238,0.35308199,78993.0,78992.0,0.35978165]
[1744108114389,0.35308199,78993.0,78992.0,0.35974165]
[1744108131441,0.34042299,78993.0,78992.0,0.35974165]
[1744108131666,0.34042299,78993.0,78992.0,0.37240065]
[1744108132873,0.00042299,78993.0,78992.0,0.37240065]
[1744108133077,0.00042299,78993.0,78992.0,0.41980065]
[1744108133438,0.00042299,78993.0,78992.0,0.45933636]
[1744108135181,0.00042299,78993.0,78992.0,0.87373636]
[1744108137781,0.00042299,78993.0,78992.0,0.97154165]
[1744108137982,0.00042299,78993.0,78992.0,0.92414165]
[1744108139134,0.00042299,78993.0,78992.0,0.90045949]
[1744108139346,0.00042299,78993.0,78992.0,0.91311849]
[1744108140773,0.00042299,78993.0,78992.0,0.54465864]
[1744108140774,0.60626799,78993.0,78992.0,0.54465864]
[1744108140973,0.60626799,78993.0,78992.0,0.13025864]
[1744108141660,0.60626799,78993.0,78992.0,0.12625864]
[1744108142399,0.60626799,78993.0,78992.0,0.14997081]
[1744108143826,0.34042299,78993.0,78992.0,0.16451166]
[1744108144048,0.34042299,78993.0,78992.0,0.32069066]
[1744108144419,0.34042299,78993.0,78992.0,0.30803166]
[1744108144649,0.34042299,78993.0,78992.0,0.32069066]
[1744108144969,0.34042299,78993.0,78992.0,0.30803166]
[1744108145386,0.34042299,78993.0,78992.0,0.28431949]
[1744108148058,0.34042299,78993.0,78992.0,0.29697849]
[1744108148398,0.00042299,78993.0,78992.0,0.49417849]
[1744108157603,0.00042299,78993.0,78992.0,0.51788099]
[1744108157821,0.00042299,78993.0,78992.0,0.6023911]
[1744108158018,0.00042299,78993.0,78992.0,1.0167911]
[1744108158783,0.00142299,78993.0,78992.0,1.0207911]
[1744108159891,0.00042299,78993.0,78992.0,1.0167911]
[1744108160309,0.00142299,78993.0,78992.0,1.0207911]
[1744108160905,0.00242299,78993.0,78992.0,1.0217911]
[1744108161104,0.00242299,78993.0,78992.0,0.9980886]
[1744108161304,0.00242299,78993.0,78992.0,0.8480886]
[1744108161509,0.00242299,78993.0,78992.0,0.9980886]
[1744108161778,0.00242299,78993.0,78992.0,0.80857849]
[1744108162135,0.00242299,78993.0,78992.0,0.95857849]
[1744108163334,0.00042299,78993.0,78992.0,0.95357849]
[1744108163540,0.00242299,78993.0,78992.0,0.91257849]
[1744108163688,0.00142299,78993.0,78992.0,0.91257849]
[1744108163901,0.00042299,78993.0,78992.0,0.90857849]
[1744108164145,0.00142299,78993.0,78992.0,0.89591949]
[1744108164343,0.01508199,78993.0,78992.0,0.85271949]
[1744108164519,0.01508199,78993.0,78992.0,0.42377864]
[1744108164726,0.01408199,78993.0,78992.0,0.43431949]
[1744108164941,0.01408199,78993.0,78992.0,0.41977864]
[1744108165254,0.35508199,78993.0,78992.0,0.27373864]
[1744108165395,0.35408199,78993.0,78992.0,0.28827949]
[1744108166482,0.35308199,78993.0,78992.0,0.28427949]
[1744108166756,0.35408199,78993.0,78992.0,0.28827949]
[1744108167160,0.35308199,78993.0,78992.0,0.28427949]
[1744108167500,0.35308199,78993.0,78992.0,0.28627949]
[1744108175862,0.00042299,78993.0,78992.0,0.49703849]
[1744108176063,0.00042299,78993.0,78992.0,0.54603849]
[1744108180818,0.00042299,78993.0,78992.0,0.65977697]
[1744108181927,0.00042299,78993.0,78992.0,1.07417697]
[1744108186624,0.00042299,78993.0,78992.0,0.96043849]
[1744108187842,0.00042299,78993.0,78992.0,0.95813849]
[1744108190596,0.00042299,78993.0,78992.0,0.99759772]
[1744108190955,0.00042299,78993.0,78992.0,0.99559772]
[1744108191573,0.00142299,78993.0,78992.0,0.99559772]
[1744108191775,0.00042299,78993.0,78992.0,0.99559772]
[1744108192340,0.00142299,78993.0,78992.0,0.99559772]
[1744108192706,0.00142299,78993.0,78992.0,1.00159772]
[1744108192992,0.00042299,78993.0,78992.0,0.99559772]
[1744108193429,0.00142299,78993.0,78992.0,1.00159772]
[1744108194038,0.00242299,78993.0,78992.0,1.00559772]
[1744108197725,9.9e-07,78993.0,78992.0,1.00559772]
[1744108203382,9.9e-07,78993.0,78992.0,0.85559772]
[1744108203591,9.9e-07,78993.0,78992.0,0.96613849]
[1744108203774,9.9e-07,78993.0,78992.0,0.85449764]
[1744108204175,9.9e-07,78993.0,78992.0,0.86903849]
[1744108204370,9.9e-07,78993.0,78992.0,0.85449764]
[1744108204589,9.9e-07,78993.0,78992.0,0.86903849]
[1744108208398,9.9e-07,78993.0,78992.0,0.90850921]
[1744108208617,9.9e-07,78993.0,78992.0,0.95670921]
[1744108208843,9.9e-07,78993.0,78992.0,1.00650921]
[1744108211388,3.9e-07,79000.0,78999.0,0.314025]
[1744108211590,3.9e-07,79000.0,78999.0,0.95369521]
[1744108212222,3.9e-07,79000.0,78999.0,0.96337048]
[1744108212837,0.00200039,79000.0,78999.0,0.97237048]
[1744108214881,0.00200039,79000.0,78999.0,0.95782963]
[1744108215294,0.00200039,79000.0,78999.0,0.97237048]
[1744108215729,0.00200039,79000.0,78999.0,0.92737048]
[1744108217109,0.00200039,79000.0,78999.0,1.93013048]
[1744108218386,0.00200039,79000.0,78999.0,2.04369295]
[1744108220527,0.00200039,79000.0,78999.0,2.2743521]
[1744108220743,0.00200039,79000.0,78999.0,2.23488138]
[1744108221319,0.00200039,79000.0,78999.0,2.24942223]
[1744108221499,0.00200039,79000.0,78999.0,2.13585976]
[1744108222925,0.00200039,79000.0,78999.0,2.22305942]
[1744108227377,0.00200039,79000.0,78999.0,2.27285942]
[1744108228389,0.26782239,79000.0,78999.0,1.85545391]
[1744108228794,0.00200039,79000.0,78999.0,1.85545391]
[1744108228990,0.00200039,79000.0,78999.0,1.86999476]
[1744108229195,0.00200039,79000.0,78999.0,1.86811191]
[1744108229397,0.00200039,79000.0,78999.0,1.88265276]
[1744108232843,0.00200039,79000.0,78999.0,1.73929276]
[1744108233048,0.00200039,79000.0,78999.0,1.88269276]
[1744108236928,0.00200039,79000.0,78999.0,1.87003476]
[1744108237150,0.00200039,79000.0,78999.0,1.88269276]
[1744108241369,0.00200039,79000.0,78999.0,1.98009276]
[1744108241754,0.00200039,79000.0,78999.0,2.01957997]
[1744108241954,0.00200039,79000.0,78999.0,1.96977997]
[1744108243987,0.00200039,79000.0,78999.0,1.82637997]
[1744108244189,0.00200039,79000.0,78999.0,1.96977997]
[1744108244796,0.00200039,79000.0,78999.0,1.92217997]
[1744108244976,0.00200039,79000.0,78999.0,1.88269276]
[1744108246510,0.00200039,79000.0,78999.0,1.92218562]
[1744108246710,0.00200039,79000.0,78999.0,1.88269276]
[1744108247606,0.00200039,79000.0,78999.0,1.92218893]
[1744108252482,0.00200039,79000.0,78999.0,1.88269276]
[1744108253633,0.00200039,79000.0,78999.0,1.92220266]
[1744108254721,0.00200039,79000.0,78999.0,1.77880266]
[1744108254886,0.00200039,79000.0,78999.0,1.92216266]
[1744108255090,0.00200039,79000.0,78999.0,1.88265276]
[1744108257122,0.00200039,79000.0,78999.0,1.92216206]
[1744108258842,0.00200039,79000.0,78999.0,2.03592833]
[1744108260990,0.00200039,79000.0,78999.0,2.02327033]
[1744108261197,0.00200039,79000.0,78999.0,1.83376103]
[1744108261403,0.01465839,79000.0,78999.0,1.69040103]
[1744108261641,0.35465839,79000.0,78999.0,1.70545391]
[1744108261842,0.35465839,79000.0,78999.0,1.71999476]
[1744108262156,0.35465839,79000.0,78999.0,1.70545391]
[1744108262742,0.35465839,79000.0,78999.0,1.71999476]
[1744108262948,0.34200039,79000.0,78999.0,1.71999476]
[1744108267025,0.34200039,79000.0,78999.0,1.30559476]
[1744108269792,0.35465839,79000.0,78999.0,1.30559476]
[1744108270396,0.00200039,79000.0,78999.0,1.55876176]
[1744108270623,0.00200039,79000.0,78999.0,1.62063505]
[1744108271196,8.9e-07,79007.0,79006.0,0.162657]
[1744108271397,0.002,79019.0,79012.0,0.28032285]
[1744108271749,0.002,79019.0,79012.0,1.01168149]
[1744108273858,0.352655,79018.0,79012.0,0.96438149]
[1744108274006,0.34,79018.0,79012.0,0.96438149]
[1744108274210,0.001336,79013.0,79012.0,0.97238149]
[1744108274614,0.000336,79013.0,79012.0,0.97038149]
[1744108274948,0.000336,79013.0,79012.0,0.97538149]
[1744108275155,0.000336,79013.0,79012.0,0.96938149]
[1744108275353,0.000336,79013.0,79012.0,0.97338149]
[1744108275569,0.002,79019.0,79018.0,0.465561]
[1744108275769,0.002,79019.0,79018.0,0.65386049]
[1744108276695,0.002,79019.0,79018.0,0.65391952]
[1744108277891,0.003,79019.0,79018.0,0.66091952]
[1744108278251,0.004,79019.0,79018.0,0.66791952]
[1744108278855,0.004,79019.0,79018.0,1.08231952]
[1744108282819,0.004,79019.0,79018.0,0.98501952]
[1744108285758,0.004,79019.0,79018.0,0.84803767]
[1744108286404,0.004,79019.0,79018.0,0.86257852]
[1744108288169,0.004,79019.0,79018.0,1.11568452]
[1744108288321,0.004,79019.0,79018.0,1.12833952]
[1744108291133,0.004,79019.0,79018.0,2.13089952]
[1744108294246,0.004,79019.0,79018.0,2.17809952]
[1744108296990,0.004,79019.0,79018.0,2.13089952]
[1744108299692,0.269758,79019.0,79018.0,1.70059767]
[1744108300059,0.269758,79019.0,79018.0,1.71513852]
[1744108300693,0.268758,79019.0,79018.0,1.70813852]
[1744108301017,0.267758,79019.0,79018.0,1.70413852]
[1744108301209,0.267758,79019.0,79018.0,1.70713852]
[1744108301673,0.267758,79019.0,79018.0,1.70413852]
[1744108301807,0.267758,79019.0,79018.0,1.70613852]
[1744108302348,0.267758,79019.0,79018.0,1.29173852]
[1744108302509,0.267758,79019.0,79018.0,1.28873852]
[1744108302849,0.267758,79019.0,79018.0,1.29073852]
[1744108303964,0.002,79019.0,79018.0,1.29073852]
[1744108304750,0.002,79019.0,79018.0,1.35299352]
[1744108305293,0.002,79019.0,79018.0,1.39809352]
[1744108308067,0.002,79019.0,79018.0,1.85199098]
[1744108309557,0.002,79019.0,79018.0,1.84999098]
[1744108310012,0.002,79019.0,79018.0,1.85299098]
[1744108310171,0.002,79019.0,79018.0,1.85099098]
[1744108310378,0.002,79019.0,79018.0,1.84799098]
[1744108311475,0.002,79019.0,79018.0,1.84999098]
[1744108311696,0.002,79019.0,79018.0,1.85499098]
[1744108311894,0.002,79019.0,79018.0,1.85299098]
[1744108313192,0.002,79019.0,79018.0,1.85799098]
[1744108320833,1e-06,79025.0,79024.0,0.012654]
[1744108321056,0.0497,79055.0,79046.0,0.15]
[1744108321253,0.058448,79059.0,79046.0,0.70227634]
[1744108321528,0.34,79055.0,79046.0,0.69974649]
[1744108322071,0.01265,79050.0,79046.0,0.43407949]
[1744108322294,0.2533506,79047.0,79046.0,0.44382608]
[1744108322501,0.2660006,79047.0,79046.0,0.44482608]
[1744108322884,0.2660006,79047.0,79046.0,0.44682608]
[1744108323252,0.2660006,79047.0,79046.0,0.44582608]
[1744108323367,0.2660006,79047.0,79046.0,0.44382608]
[1744108324928,0.2660006,79047.0,79046.0,0.29382608]
[1744108325428,0.2660006,79047.0,79046.0,0.44382608]
[1744108326625,0.2670006,79047.0,79046.0,0.44382608]
[1744108328332,0.6070006,79047.0,79046.0,0.44382608]
[1744108328534,0.6070006,79047.0,79032.0,1.36913525]
[1744108328535,0.72111533,79047.0,79032.0,0.11367425]
[1744108328746,0.62001,79033.0,79032.0,0.23993289]
[1744108328952,0.605721,79030.0,79029.0,0.00941111]
[1744108329381,0.605721,79030.0,79029.0,4.215e-05]
[1744108329738,0.012654,79022.0,79021.0,0.14328]
[1744108329915,0.605805,79005.0,79002.0,0.5]
[1744108330116,0.605805,79005.0,79004.0,1.28652148]
[1744108330317,0.605805,79005.0,79004.0,1.27198063]
[1744108330839,0.605805,79005.0,79004.0,1.28652148]
[1744108332185,0.605805,79005.0,79004.0,1.28852148]
[1744108332745,0.605805,79005.0,79004.0,1.29052148]
[1744108334155,0.61850128,79005.0,79004.0,1.29052148]
[1744108334674,0.61850128,79005.0,79004.0,0.14732199]
[1744108334863,0.61850128,79005.0,79004.0,9.9e-07]
[1744108335008,0.605872,78985.0,78984.0,0.4144]
[1744108335351,0.605883,78982.0,78981.0,0.000168]
[1744108336451,0.609883,78982.0,78981.0,0.000168]
[1744108336632,0.613883,78982.0,78981.0,0.000168]
[1744108337032,0.609883,78982.0,78981.0,0.000168]
[1744108338221,0.605883,78982.0,78981.0,0.000168]
[1744108338419,0.606883,78982.0,78981.0,0.007168]
[1744108338644,0.608883,78982.0,78981.0,0.007168]
[1744108338848,0.606883,78982.0,78981.0,0.007168]
[1744108339261,0.607883,78982.0,78981.0,0.013168]
[1744108345926,0.607883,78982.0,78981.0,0.28942664]
[1744108345927,0.002,78982.0,78981.0,0.28942664]
[1744108346168,0.002,78982.0,78981.0,0.31662849]
[1744108346726,0.002,78982.0,78981.0,0.30396749]
[1744108346927,0.606883,78982.0,78981.0,0.13342664]
[1744108347642,0.606883,78982.0,78981.0,0.12642664]
[1744108347844,0.605883,78982.0,78981.0,0.12642664]
[1744108348048,0.34,78982.0,78981.0,0.15362849]
[1744108348930,0.009897,78992.0,78991.0,0.28039285]
[1744108349129,0.022556,78992.0,78991.0,0.14079949]
[1744108349338,0.352659,78992.0,78991.0,0.12625864]
[1744108349785,0.01266,78986.0,78985.0,0.1434]
[1744108349937,0.605869,78986.0,78985.0,0.26965864]
[1744108351702,0.605869,78986.0,78985.0,0.1434]
[1744108351915,0.265883,78982.0,78981.0,0.000168]
[1744108352066,0.265883,78982.0,78981.0,0.12642664]
[1744108356431,0.605883,78982.0,78981.0,0.12642664]
[1744108357063,0.77743845,78982.0,78981.0,1e-06]
[1744108357265,0.605953,78961.0,78960.0,0.000168]
[1744108357469,0.605953,78961.0,78960.0,0.12642664]
[1744108358483,0.605953,78961.0,78960.0,0.12742664]
[1744108358689,0.6187385,78961.0,78960.0,0.12742664]
[1744108358820,0.61881301,78961.0,78960.0,0.12642664]
[1744108360231,0.61881301,78961.0,78960.0,0.000168]
[1744108362887,0.61881301,78961.0,78960.0,0.12642664]
[1744108363084,0.35286001,78961.0,78960.0,0.12642664]
[1744108363320,0.61881301,78961.0,78960.0,0.12642664]
[1744108364964,7.451e-05,78961.0,78960.0,0.40692349]
[1744108365167,7.451e-05,78961.0,78960.0,0.64386349]
[1744108365961,7.451e-05,78961.0,78960.0,0.37790749]
[1744108366192,0.00107451,78961.0,78960.0,0.39057149]